[Event "*** SCC Grand Prix: Titled Tuesday Blitz"]
[Site "Chess.com"]
[Date "2020.09.29"]
[Round "10"]
[White "BillieKimbah"]
[Black "BocharovD"]
[Result "1-0"]
[WhiteElo "2935"]
[BlackElo "2802"]
[TimeControl "180+1"]
[EndTime "11:56:47 PDT"]
[Termination "BillieKimbah won by resignation"]

1. e4 {[%clk 0:02:59.4]} 1... c5 {[%clk 0:02:59.4]} 2. b3 {[%clk 0:02:58.8]}
2... d6 {[%clk 0:02:57.2]} 3. Bb2 {[%clk 0:02:57.7]} 3... Nf6 {[%clk 0:02:57.8]}
4. Bb5+ {[%clk 0:02:54.8]} 4... Bd7 {[%clk 0:02:51.8]} 5. Bxd7+ {[%clk
0:02:54.6]} 5... Qxd7 {[%clk 0:02:52.7]} 6. Bxf6 {[%clk 0:02:53.1]} 6... gxf6
{[%clk 0:02:52.3]} 7. Nf3 {[%clk 0:02:50.5]} 7... Rg8 {[%clk 0:02:51.7]} 8. O-O
{[%clk 0:02:49.6]} 8... Nc6 {[%clk 0:02:48.4]} 9. Re1 {[%clk 0:02:45.7]} 9... h5
{[%clk 0:02:41.3]} 10. Qe2 {[%clk 0:02:44.3]} 10... Qg4 {[%clk 0:02:39]} 11. g3
{[%clk 0:02:42.8]} 11... h4 {[%clk 0:02:39.3]} 12. Nc3 {[%clk 0:02:37]} 12...
O-O-O {[%clk 0:02:36.5]} 13. Nd5 {[%clk 0:02:33.2]} 13... hxg3 {[%clk 0:02:25]}
14. fxg3 {[%clk 0:02:31.3]} 14... Rh8 {[%clk 0:02:24.3]} 15. d3 {[%clk
0:02:23.5]} 15... e6 {[%clk 0:02:14.8]} 16. Ne3 {[%clk 0:02:20.8]} 16... Qg6
{[%clk 0:02:08.6]} 17. Rf1 {[%clk 0:02:19.8]} 17... Bh6 {[%clk 0:02:07]} 18. Ng2
{[%clk 0:02:16]} 18... Bg5 {[%clk 0:02:02]} 19. c3 {[%clk 0:02:10.8]} 19... Rdg8
{[%clk 0:01:52.1]} 20. Rad1 {[%clk 0:02:09.1]} 20... Qh5 {[%clk 0:01:42.1]} 21.
d4 {[%clk 0:02:06.6]} 21... Kb8 {[%clk 0:01:16.3]} 22. Rf2 {[%clk 0:02:05.4]}
22... cxd4 {[%clk 0:01:08.2]} 23. cxd4 {[%clk 0:02:05.2]} 23... e5 {[%clk
0:01:07.8]} 24. Nge1 {[%clk 0:01:38.6]} 24... Bf4 {[%clk 0:00:54.5]} 25. Rg2
{[%clk 0:01:32.4]} 25... Nxd4 {[%clk 0:00:39.8]} 26. Nxd4 {[%clk 0:01:31]} 26...
exd4 {[%clk 0:00:39.9]} 27. Rxd4 {[%clk 0:01:17]} 27... Be5 {[%clk 0:00:14]} 28.
Rd1 {[%clk 0:01:11.7]} 28... Qh3 {[%clk 0:00:14.2]} 29. Rd3 {[%clk 0:01:06.9]}
29... f5 {[%clk 0:00:13.4]} 30. exf5 {[%clk 0:01:00.6]} 30... Qxf5 {[%clk
0:00:14.3]} 31. Nf3 {[%clk 0:00:58.7]} 31... f6 {[%clk 0:00:14.4]} 32. Nxe5
{[%clk 0:00:40.3]} 32... dxe5 {[%clk 0:00:15.3]} 33. Rf3 {[%clk 0:00:40.1]}
33... Qe6 {[%clk 0:00:14]} 34. Rgf2 {[%clk 0:00:39.6]} 34... Rf8 {[%clk
0:00:13.7]} 35. Qe4 {[%clk 0:00:37.9]} 35... a6 {[%clk 0:00:12.9]} 36. Rf5
{[%clk 0:00:37.8]} 36... Qd6 {[%clk 0:00:11.1]} 37. Kg2 {[%clk 0:00:37.6]} 37...
Rhg8 {[%clk 0:00:11.1]} 38. Qf3 {[%clk 0:00:37]} 38... Rg6 {[%clk 0:00:11.4]}
39. Qe4 {[%clk 0:00:25.8]} 39... Rfg8 {[%clk 0:00:10.6]} 40. Qf3 {[%clk
0:00:23.5]} 40... Rf8 {[%clk 0:00:10.4]} 41. Qe3 {[%clk 0:00:23.9]} 41... Rfg8
{[%clk 0:00:10.1]} 42. Rd2 {[%clk 0:00:22.6]} 42... Qe6 {[%clk 0:00:09.8]} 43.
Qf3 {[%clk 0:00:16]} 43... Rg4 {[%clk 0:00:09.9]} 44. Rxf6 {[%clk 0:00:15.1]}
44... Qc8 {[%clk 0:00:10.2]} 45. Rf7 {[%clk 0:00:13]} 45... Rd4 {[%clk
0:00:10.1]} 46. Rxd4 {[%clk 0:00:12.3]} 46... exd4 {[%clk 0:00:11]} 47. Qf4+
{[%clk 0:00:12.8]} 47... Ka8 {[%clk 0:00:11]} 48. Qxd4 {[%clk 0:00:12.5]} 48...
Qc6+ {[%clk 0:00:11.4]} 49. Kg1 {[%clk 0:00:10.3]} 49... Re8 {[%clk 0:00:09.1]}
50. Rf1 {[%clk 0:00:10.1]} 50... Qg6 {[%clk 0:00:07.4]} 51. Qf2 {[%clk
0:00:05.1]} 51... Qe4 {[%clk 0:00:07.2]} 52. Qf3 {[%clk 0:00:05.1]} 52... Qd4+
{[%clk 0:00:07.3]} 53. Rf2 {[%clk 0:00:05.4]} 53... Qe5 {[%clk 0:00:06.8]} 54.
Kg2 {[%clk 0:00:05.7]} 54... Qe6 {[%clk 0:00:07]} 55. Qf4 {[%clk 0:00:05.9]}
55... Qd5+ {[%clk 0:00:07.1]} 56. Qf3 {[%clk 0:00:06.3]} 56... Qe6 {[%clk
0:00:08]} 57. h4 {[%clk 0:00:06.7]} 57... Rf8 {[%clk 0:00:07.5]} 58. Qxf8+
{[%clk 0:00:05.7]} 1-0

[Event "*** SCC Grand Prix: Titled Tuesday Blitz"]
[Site "Chess.com"]
[Date "2020.09.29"]
[Round "10"]
[White "Margency"]
[Black "DenLaz"]
[Result "0-1"]
[WhiteElo "2644"]
[BlackElo "2805"]
[TimeControl "180+1"]
[EndTime "11:56:47 PDT"]
[Termination "DenLaz won on time"]

1. e4 {[%clk 0:03:00.9]} 1... e5 {[%clk 0:02:57.1]} 2. Nf3 {[%clk 0:03:00.8]}
2... Nc6 {[%clk 0:02:57.5]} 3. Bc4 {[%clk 0:03:01]} 3... Bc5 {[%clk 0:02:57.3]}
4. d3 {[%clk 0:03:00.5]} 4... Nf6 {[%clk 0:02:57.6]} 5. O-O {[%clk 0:03:00.8]}
5... d6 {[%clk 0:02:57.6]} 6. c3 {[%clk 0:03:00.6]} 6... a6 {[%clk 0:02:58.1]}
7. a4 {[%clk 0:03:00.5]} 7... h6 {[%clk 0:02:58.3]} 8. Na3 {[%clk 0:03:00.2]}
8... O-O {[%clk 0:02:58.4]} 9. Nc2 {[%clk 0:03:00]} 9... Be6 {[%clk 0:02:59.1]}
10. Bxe6 {[%clk 0:02:58.6]} 10... fxe6 {[%clk 0:03:00]} 11. Be3 {[%clk
0:02:58.9]} 11... Bxe3 {[%clk 0:02:59.9]} 12. Nxe3 {[%clk 0:02:58.8]} 12... Qe8
{[%clk 0:03:00.5]} 13. a5 {[%clk 0:02:54.5]} 13... Nh5 {[%clk 0:02:59.6]} 14. g3
{[%clk 0:02:47.8]} 14... Qf7 {[%clk 0:02:57.5]} 15. Nh4 {[%clk 0:02:40.2]} 15...
Ne7 {[%clk 0:02:52.7]} 16. d4 {[%clk 0:02:23]} 16... exd4 {[%clk 0:02:50.6]} 17.
cxd4 {[%clk 0:02:22.8]} 17... Nf6 {[%clk 0:02:50.4]} 18. f3 {[%clk 0:02:20.8]}
18... Ng6 {[%clk 0:02:45.7]} 19. Nxg6 {[%clk 0:02:12.8]} 19... Qxg6 {[%clk
0:02:46.6]} 20. Rc1 {[%clk 0:02:12.6]} 20... c6 {[%clk 0:02:45.3]} 21. Qb3
{[%clk 0:02:02.2]} 21... Qf7 {[%clk 0:02:44.6]} 22. Nc4 {[%clk 0:01:56.9]} 22...
Rad8 {[%clk 0:02:39.8]} 23. e5 {[%clk 0:01:50.4]} 23... Ne8 {[%clk 0:02:32]} 24.
Rcd1 {[%clk 0:01:42.5]} 24... d5 {[%clk 0:02:29.7]} 25. Ne3 {[%clk 0:01:39.5]}
25... Rb8 {[%clk 0:02:28.5]} 26. Qc2 {[%clk 0:01:30]} 26... Nc7 {[%clk
0:02:27.1]} 27. f4 {[%clk 0:01:29.2]} 27... Nb5 {[%clk 0:02:25.2]} 28. f5 {[%clk
0:01:23.8]} 28... exf5 {[%clk 0:02:24.4]} 29. Nxf5 {[%clk 0:01:20.1]} 29... Qe6
{[%clk 0:02:21.8]} 30. Rf4 {[%clk 0:01:10.9]} 30... Rf7 {[%clk 0:02:19]} 31.
Rdf1 {[%clk 0:01:07.3]} 31... Rbf8 {[%clk 0:02:17.8]} 32. g4 {[%clk 0:00:56.1]}
32... Kh8 {[%clk 0:02:12.1]} 33. Qd2 {[%clk 0:00:47.7]} 33... c5 {[%clk
0:01:52]} 34. dxc5 {[%clk 0:00:42.3]} 34... Qxe5 {[%clk 0:01:51.5]} 35. Nh4
{[%clk 0:00:41.9]} 35... Qg5 {[%clk 0:01:20.7]} 36. Rxf7 {[%clk 0:00:32.7]}
36... Qxd2 {[%clk 0:01:17.5]} 37. Rxf8+ {[%clk 0:00:27.2]} 37... Kh7 {[%clk
0:01:17.3]} 38. h3 {[%clk 0:00:20.6]} 38... Nd4 {[%clk 0:01:15]} 39. R8f7 {[%clk
0:00:14.5]} 39... Qe3+ {[%clk 0:01:10.6]} 40. Kg2 {[%clk 0:00:11.7]} 40... Qe4+
{[%clk 0:01:10.9]} 41. Kg3 {[%clk 0:00:11.4]} 41... Ne2+ {[%clk 0:01:07.5]} 42.
Kf2 {[%clk 0:00:11.8]} 42... Nf4 {[%clk 0:01:04.9]} 43. Kg3 {[%clk 0:00:09.6]}
43... Qe3+ {[%clk 0:01:01.1]} 44. Nf3 {[%clk 0:00:08.8]} 44... Ng6 {[%clk
0:00:55.6]} 45. Kg2 {[%clk 0:00:08.1]} 45... Qxc5 {[%clk 0:00:53.6]} 46. h4
{[%clk 0:00:07.5]} 46... Qc4 {[%clk 0:00:51.7]} 47. Kg3 {[%clk 0:00:06.1]} 47...
d4 {[%clk 0:00:29.6]} 48. h5 {[%clk 0:00:06]} 48... Nh8 {[%clk 0:00:29.7]} 49.
Rf8 {[%clk 0:00:02.3]} 49... Qc7+ {[%clk 0:00:29.1]} 50. Kg2 {[%clk 0:00:02.3]}
50... d3 {[%clk 0:00:28.5]} 51. Rf2 {[%clk 0:00:02.7]} 51... Qd6 {[%clk
0:00:26.4]} 52. Nd2 {[%clk 0:00:01.5]} 52... Qe6 {[%clk 0:00:24.8]} 53. Kg3
{[%clk 0:00:01.4]} 53... Qe5+ {[%clk 0:00:25.2]} 54. Kg2 {[%clk 0:00:01.9]}
54... Qxa5 {[%clk 0:00:25.3]} 55. Kg3 {[%clk 0:00:02.8]} 55... Qe5+ {[%clk
0:00:25.3]} 56. Kg2 {[%clk 0:00:03]} 56... Qxb2 {[%clk 0:00:21.4]} 57. R8f3
{[%clk 0:00:02.7]} 57... Qb5 {[%clk 0:00:20.9]} 58. Kg3 {[%clk 0:00:03.2]} 58...
a5 {[%clk 0:00:20.9]} 59. Rf4 {[%clk 0:00:03]} 59... a4 {[%clk 0:00:21]} 60. Rf5
{[%clk 0:00:03.9]} 60... Qd7 {[%clk 0:00:21]} 61. Ra5 {[%clk 0:00:03.3]} 61...
Qc7+ {[%clk 0:00:20.7]} 62. Re5 {[%clk 0:00:02.2]} 62... Qxe5+ {[%clk
0:00:20.9]} 0-1

[Event "*** SCC Grand Prix: Titled Tuesday Blitz"]
[Site "Chess.com"]
[Date "2020.09.29"]
[Round "10"]
[White "Evgeny81"]
[Black "Alexander_Moskalenko"]
[Result "0-1"]
[WhiteElo "2677"]
[BlackElo "2851"]
[TimeControl "180+1"]
[EndTime "11:56:49 PDT"]
[Termination "Alexander_Moskalenko won on time"]

1. Nf3 {[%clk 0:03:00.9]} 1... d5 {[%clk 0:02:58.9]} 2. g3 {[%clk 0:03:00.2]}
2... c6 {[%clk 0:02:59.8]} 3. Bg2 {[%clk 0:03:00.4]} 3... Nf6 {[%clk 0:03:00.7]}
4. O-O {[%clk 0:03:00.6]} 4... Bg4 {[%clk 0:03:01.5]} 5. d3 {[%clk 0:02:59.7]}
5... Nbd7 {[%clk 0:03:01.6]} 6. Nbd2 {[%clk 0:02:59.2]} 6... e5 {[%clk 0:03:02]}
7. e4 {[%clk 0:02:58]} 7... dxe4 {[%clk 0:03:02.9]} 8. dxe4 {[%clk 0:02:57.9]}
8... Bc5 {[%clk 0:03:03]} 9. Qe1 {[%clk 0:02:55.1]} 9... O-O {[%clk 0:03:02.5]}
10. a4 {[%clk 0:02:55.2]} 10... a5 {[%clk 0:03:01.3]} 11. h3 {[%clk 0:02:54.6]}
11... Bh5 {[%clk 0:03:00.9]} 12. Kh2 {[%clk 0:02:52.9]} 12... Qc7 {[%clk
0:03:00.7]} 13. Nc4 {[%clk 0:02:51]} 13... Rfe8 {[%clk 0:03:00.5]} 14. Bd2
{[%clk 0:02:50.2]} 14... b6 {[%clk 0:02:56.3]} 15. Nh4 {[%clk 0:02:49.2]} 15...
Bg6 {[%clk 0:02:51.9]} 16. Nxg6 {[%clk 0:02:35.1]} 16... hxg6 {[%clk 0:02:51.6]}
17. Qe2 {[%clk 0:02:34.8]} 17... Bb4 {[%clk 0:02:46.6]} 18. Bg5 {[%clk
0:02:29.3]} 18... Bf8 {[%clk 0:02:45.6]} 19. Rad1 {[%clk 0:02:23]} 19... Nc5
{[%clk 0:02:43.3]} 20. Bxf6 {[%clk 0:02:20.6]} 20... gxf6 {[%clk 0:02:43]} 21.
b3 {[%clk 0:02:21]} 21... Rad8 {[%clk 0:02:38.3]} 22. h4 {[%clk 0:02:19.6]}
22... Rxd1 {[%clk 0:02:29.5]} 23. Rxd1 {[%clk 0:02:20.5]} 23... Rd8 {[%clk
0:02:29.9]} 24. h5 {[%clk 0:02:20.5]} 24... Ne6 {[%clk 0:02:25.6]} 25. Rxd8
{[%clk 0:02:17.1]} 25... Qxd8 {[%clk 0:02:26.5]} 26. Qg4 {[%clk 0:02:14]} 26...
b5 {[%clk 0:02:09.8]} 27. Ne3 {[%clk 0:01:57.7]} 27... Bh6 {[%clk 0:02:09.3]}
28. hxg6 {[%clk 0:01:10.3]} 28... Bxe3 {[%clk 0:02:09.1]} 29. fxe3 {[%clk
0:01:08.2]} 29... Ng5 {[%clk 0:02:08.4]} 30. gxf7+ {[%clk 0:01:03.9]} 30... Kxf7
{[%clk 0:02:09.3]} 31. axb5 {[%clk 0:01:03.1]} 31... cxb5 {[%clk 0:02:09]} 32.
Qe2 {[%clk 0:01:03.2]} 32... Qd7 {[%clk 0:01:59.4]} 33. Bf1 {[%clk 0:00:59.9]}
33... b4 {[%clk 0:01:59.2]} 34. Qc4+ {[%clk 0:00:56.2]} 34... Kg7 {[%clk
0:01:59.4]} 35. Bg2 {[%clk 0:00:50]} 35... Qa7 {[%clk 0:01:47.7]} 36. Qd3 {[%clk
0:00:45.3]} 36... Qc7 {[%clk 0:01:47.7]} 37. Kg1 {[%clk 0:00:44.6]} 37... Kf7
{[%clk 0:01:42.9]} 38. Kf2 {[%clk 0:00:44.3]} 38... Ke7 {[%clk 0:01:43.5]} 39.
Ke2 {[%clk 0:00:44.2]} 39... Qc8 {[%clk 0:01:42.9]} 40. Kd2 {[%clk 0:00:36.4]}
40... Qg4 {[%clk 0:01:42.4]} 41. Qd5 {[%clk 0:00:28.6]} 41... Qxg3 {[%clk
0:01:42.6]} 42. Bf1 {[%clk 0:00:26.1]} 42... Qf2+ {[%clk 0:01:42.1]} 43. Be2
{[%clk 0:00:24.9]} 43... Nf3+ {[%clk 0:01:39]} 44. Kd3 {[%clk 0:00:25.1]} 44...
Ne1+ {[%clk 0:01:37.7]} 45. Kd2 {[%clk 0:00:25.5]} 45... Nf3+ {[%clk 0:01:15.4]}
46. Kd3 {[%clk 0:00:25.1]} 46... Ne1+ {[%clk 0:00:48.4]} 47. Kd2 {[%clk
0:00:25]} 47... Ng2 {[%clk 0:00:49.3]} 48. Qc5+ {[%clk 0:00:17.9]} 48... Kf7
{[%clk 0:00:46.4]} 49. Qa7+ {[%clk 0:00:13.3]} 49... Kg6 {[%clk 0:00:44.7]} 50.
Kd3 {[%clk 0:00:12.1]} 50... Ne1+ {[%clk 0:00:38]} 51. Kd2 {[%clk 0:00:12.3]}
51... Nxc2 {[%clk 0:00:35.2]} 52. Qc5 {[%clk 0:00:05]} 52... Qe1+ {[%clk
0:00:32.4]} 53. Kxc2 {[%clk 0:00:04.3]} 53... Qxe2+ {[%clk 0:00:32.6]} 54. Kb1
{[%clk 0:00:04.5]} 54... Qd3+ {[%clk 0:00:32.1]} 55. Kb2 {[%clk 0:00:02.5]}
55... Qxe4 {[%clk 0:00:32.1]} 56. Qxa5 {[%clk 0:00:02.6]} 56... Qg2+ {[%clk
0:00:31.5]} 57. Kb1 {[%clk 0:00:02.5]} 57... Qg1+ {[%clk 0:00:32.3]} 58. Kb2
{[%clk 0:00:03.1]} 58... Qf2+ {[%clk 0:00:32.9]} 59. Kb1 {[%clk 0:00:03.7]}
59... Qe1+ {[%clk 0:00:33.3]} 60. Kb2 {[%clk 0:00:04]} 60... Qd2+ {[%clk
0:00:33.5]} 61. Kb1 {[%clk 0:00:04.2]} 61... Qd3+ {[%clk 0:00:34.1]} 62. Kb2
{[%clk 0:00:04.7]} 62... Qc3+ {[%clk 0:00:34.5]} 63. Ka2 {[%clk 0:00:05.2]}
63... Qc2+ {[%clk 0:00:32.6]} 64. Ka1 {[%clk 0:00:05.4]} 64... Qxb3 {[%clk
0:00:29.7]} 65. Qb6 {[%clk 0:00:04.7]} 65... Qc3+ {[%clk 0:00:29.4]} 66. Ka2
{[%clk 0:00:03.4]} 66... Qc2+ {[%clk 0:00:29.1]} 67. Ka1 {[%clk 0:00:03.6]}
67... b3 {[%clk 0:00:29.7]} 0-1

[Event "*** SCC Grand Prix: Titled Tuesday Blitz"]
[Site "Chess.com"]
[Date "2020.09.29"]
[Round "10"]
[White "nrvisakh"]
[Black "Iskusnyh"]
[Result "1-0"]
[WhiteElo "2782"]
[BlackElo "2555"]
[TimeControl "180+1"]
[EndTime "11:56:49 PDT"]
[Termination "nrvisakh won on time"]

1. e4 {[%clk 0:03:00.9]} 1... e6 {[%clk 0:02:59.5]} 2. d4 {[%clk 0:02:55.7]}
2... d5 {[%clk 0:02:59.7]} 3. Nc3 {[%clk 0:02:54.7]} 3... Nf6 {[%clk 0:02:58.9]}
4. Bg5 {[%clk 0:02:49.6]} 4... dxe4 {[%clk 0:02:54.6]} 5. Nxe4 {[%clk
0:02:49.3]} 5... Nbd7 {[%clk 0:02:55]} 6. Nf3 {[%clk 0:02:48.7]} 6... h6 {[%clk
0:02:55.4]} 7. Nxf6+ {[%clk 0:02:44.2]} 7... Nxf6 {[%clk 0:02:55.7]} 8. Bh4
{[%clk 0:02:43.1]} 8... c5 {[%clk 0:02:53.6]} 9. Bb5+ {[%clk 0:02:42.5]} 9...
Bd7 {[%clk 0:02:50.1]} 10. Bxd7+ {[%clk 0:02:42.3]} 10... Qxd7 {[%clk
0:02:48.6]} 11. O-O {[%clk 0:02:41.8]} 11... cxd4 {[%clk 0:02:43.5]} 12. Nxd4
{[%clk 0:02:40.3]} 12... Be7 {[%clk 0:02:40.4]} 13. Re1 {[%clk 0:02:39.3]} 13...
Rd8 {[%clk 0:02:05.5]} 14. c3 {[%clk 0:02:36.7]} 14... O-O {[%clk 0:02:04.3]}
15. Qf3 {[%clk 0:02:36.5]} 15... Qd5 {[%clk 0:02:00.9]} 16. Qe2 {[%clk
0:01:28.7]} 16... Rfe8 {[%clk 0:01:53.9]} 17. a4 {[%clk 0:01:26.1]} 17... Qh5
{[%clk 0:01:43.5]} 18. Qxh5 {[%clk 0:01:13.2]} 18... Nxh5 {[%clk 0:01:42.4]} 19.
Bxe7 {[%clk 0:01:14.1]} 19... Rxe7 {[%clk 0:01:42.7]} 20. g3 {[%clk 0:01:15]}
20... Nf6 {[%clk 0:01:34.8]} 21. a5 {[%clk 0:01:12]} 21... a6 {[%clk 0:01:28.3]}
22. Ra4 {[%clk 0:00:57.5]} 22... Rd5 {[%clk 0:01:25.4]} 23. Kg2 {[%clk
0:00:54.2]} 23... Red7 {[%clk 0:01:23.3]} 24. Re2 {[%clk 0:00:52.6]} 24... Kf8
{[%clk 0:01:22.3]} 25. h4 {[%clk 0:00:51.1]} 25... g6 {[%clk 0:01:19.2]} 26. Nf3
{[%clk 0:00:35.8]} 26... Rb5 {[%clk 0:01:13.2]} 27. Ne5 {[%clk 0:00:29.1]} 27...
Rc7 {[%clk 0:00:59.3]} 28. Rf4 {[%clk 0:00:16.3]} 28... Kg7 {[%clk 0:00:49.8]}
29. Nc4 {[%clk 0:00:16.2]} 29... g5 {[%clk 0:00:43.3]} 30. hxg5 {[%clk
0:00:15.6]} 30... hxg5 {[%clk 0:00:44.1]} 31. Rd4 {[%clk 0:00:14.3]} 31... Rd5
{[%clk 0:00:42.5]} 32. Rxd5 {[%clk 0:00:10.7]} 32... Nxd5 {[%clk 0:00:41.8]} 33.
Nd6 {[%clk 0:00:09.1]} 33... Rd7 {[%clk 0:00:38.4]} 34. Ne4 {[%clk 0:00:08.3]}
34... g4 {[%clk 0:00:36.6]} 35. Nc5 {[%clk 0:00:04.1]} 35... Rc7 {[%clk
0:00:32.2]} 36. Nd3 {[%clk 0:00:04.2]} 36... Nf6 {[%clk 0:00:24.6]} 37. Re5
{[%clk 0:00:03]} 37... Rd7 {[%clk 0:00:23.5]} 38. Nc5 {[%clk 0:00:01.3]} 38...
Rd2 {[%clk 0:00:21.8]} 39. b4 {[%clk 0:00:01.8]} 39... Nd5 {[%clk 0:00:20.9]}
40. Rg5+ {[%clk 0:00:02]} 40... Kf6 {[%clk 0:00:20]} 41. Ne4+ {[%clk 0:00:02.9]}
41... Ke7 {[%clk 0:00:19.4]} 42. Nxd2 {[%clk 0:00:03.2]} 42... Nxc3 {[%clk
0:00:18.3]} 43. Rxg4 {[%clk 0:00:03.6]} 43... Nd5 {[%clk 0:00:17.5]} 44. Rc4
{[%clk 0:00:04.5]} 44... f5 {[%clk 0:00:16.2]} 45. Nf3 {[%clk 0:00:04.8]} 45...
Kd6 {[%clk 0:00:15.8]} 46. Nd4 {[%clk 0:00:05.2]} 46... f4 {[%clk 0:00:12.9]}
47. b5 {[%clk 0:00:05.4]} 47... fxg3 {[%clk 0:00:12.2]} 48. Kxg3 {[%clk
0:00:06.3]} 48... Nf6 {[%clk 0:00:11.6]} 49. bxa6 {[%clk 0:00:06.3]} 49... bxa6
{[%clk 0:00:10.3]} 50. f3 {[%clk 0:00:06.8]} 50... Kd5 {[%clk 0:00:07.5]} 51.
Ra4 {[%clk 0:00:07.3]} 51... Nd7 {[%clk 0:00:07]} 52. Ne2 {[%clk 0:00:06.8]}
52... e5 {[%clk 0:00:04.2]} 53. Nc3+ {[%clk 0:00:07]} 53... Kc5 {[%clk
0:00:03.2]} 54. Re4 {[%clk 0:00:07.9]} 1-0

[Event "*** SCC Grand Prix: Titled Tuesday Blitz"]
[Site "Chess.com"]
[Date "2020.09.29"]
[Round "10"]
[White "horripile"]
[Black "Andreikka"]
[Result "0-1"]
[WhiteElo "2682"]
[BlackElo "2863"]
[TimeControl "180+1"]
[EndTime "11:56:53 PDT"]
[Termination "Andreikka won on time"]

1. e4 {[%clk 0:03:00.9]} 1... d5 {[%clk 0:02:49.5]} 2. exd5 {[%clk 0:02:59.3]}
2... Qxd5 {[%clk 0:02:50.4]} 3. Nc3 {[%clk 0:02:59.3]} 3... Qa5 {[%clk
0:02:50.2]} 4. d4 {[%clk 0:02:59.7]} 4... Nf6 {[%clk 0:02:48.4]} 5. Nf3 {[%clk
0:02:58.3]} 5... c6 {[%clk 0:02:48.3]} 6. Ne5 {[%clk 0:02:56.7]} 6... Be6 {[%clk
0:02:47.9]} 7. Nc4 {[%clk 0:02:48]} 7... Qc7 {[%clk 0:02:45.4]} 8. Bd3 {[%clk
0:02:32.9]} 8... Bg4 {[%clk 0:02:42.2]} 9. Ne2 {[%clk 0:02:30.2]} 9... e6 {[%clk
0:02:38.7]} 10. O-O {[%clk 0:02:29.1]} 10... Be7 {[%clk 0:02:35.6]} 11. Bf4
{[%clk 0:02:20.2]} 11... Qd8 {[%clk 0:02:26.4]} 12. c3 {[%clk 0:02:17.8]} 12...
O-O {[%clk 0:02:25.7]} 13. Qb3 {[%clk 0:02:13.5]} 13... b6 {[%clk 0:02:19.3]}
14. Ne5 {[%clk 0:02:09]} 14... Bh5 {[%clk 0:02:19.6]} 15. Ng3 {[%clk 0:02:00.1]}
15... Bg6 {[%clk 0:02:19.2]} 16. Be2 {[%clk 0:01:51.1]} 16... Qc8 {[%clk
0:02:13.3]} 17. Bf3 {[%clk 0:01:47.2]} 17... Nd5 {[%clk 0:02:04.5]} 18. Bd2
{[%clk 0:01:40.7]} 18... Bd6 {[%clk 0:01:44.2]} 19. c4 {[%clk 0:01:24.5]} 19...
Nf6 {[%clk 0:01:41.8]} 20. Nxg6 {[%clk 0:01:22.2]} 20... hxg6 {[%clk 0:01:40.8]}
21. Rfd1 {[%clk 0:01:14]} 21... Qc7 {[%clk 0:01:34.3]} 22. Qa4 {[%clk
0:01:12.8]} 22... Rc8 {[%clk 0:01:33.7]} 23. Nf1 {[%clk 0:01:02.7]} 23... Nbd7
{[%clk 0:01:30.3]} 24. g3 {[%clk 0:01:02.2]} 24... Rab8 {[%clk 0:01:31]} 25.
Rac1 {[%clk 0:01:01]} 25... e5 {[%clk 0:01:29.6]} 26. Bc3 {[%clk 0:00:54.5]}
26... exd4 {[%clk 0:01:24.3]} 27. Bxd4 {[%clk 0:00:55.4]} 27... Bc5 {[%clk
0:01:20.2]} 28. Bxf6 {[%clk 0:00:49.7]} 28... Nxf6 {[%clk 0:01:18.3]} 29. b4
{[%clk 0:00:50.2]} 29... Bf8 {[%clk 0:01:13.3]} 30. Ne3 {[%clk 0:00:49.3]} 30...
a5 {[%clk 0:00:56.3]} 31. a3 {[%clk 0:00:44.5]} 31... Nd7 {[%clk 0:00:47.1]} 32.
Be2 {[%clk 0:00:31.1]} 32... Ne5 {[%clk 0:00:43.1]} 33. Qb3 {[%clk 0:00:29.1]}
33... Re8 {[%clk 0:00:40.5]} 34. Ng4 {[%clk 0:00:27.7]} 34... axb4 {[%clk
0:00:33.4]} 35. axb4 {[%clk 0:00:27.2]} 35... Nd7 {[%clk 0:00:34.3]} 36. Bf3
{[%clk 0:00:25]} 36... f5 {[%clk 0:00:20.6]} 37. Ne3 {[%clk 0:00:22.8]} 37...
Ne5 {[%clk 0:00:20.5]} 38. Be2 {[%clk 0:00:21.5]} 38... Kh7 {[%clk 0:00:18.1]}
39. Rd4 {[%clk 0:00:18.2]} 39... Be7 {[%clk 0:00:16.9]} 40. Rcd1 {[%clk
0:00:17.3]} 40... Bf6 {[%clk 0:00:17.3]} 41. R4d2 {[%clk 0:00:12.2]} 41... Bg5
{[%clk 0:00:13.8]} 42. f4 {[%clk 0:00:11.5]} 42... Bh6 {[%clk 0:00:14]} 43. Qc3
{[%clk 0:00:10.5]} 43... Re7 {[%clk 0:00:04.9]} 44. Ng2 {[%clk 0:00:10.4]} 44...
Nf7 {[%clk 0:00:04.7]} 45. h4 {[%clk 0:00:08.7]} 45... Rbe8 {[%clk 0:00:05]} 46.
Bf3 {[%clk 0:00:08.4]} 46... Nd8 {[%clk 0:00:04]} 47. Kh2 {[%clk 0:00:08.2]}
47... Ne6 {[%clk 0:00:04.5]} 48. b5 {[%clk 0:00:06.3]} 48... c5 {[%clk
0:00:04.2]} 49. Bd5 {[%clk 0:00:05.8]} 49... Nd4 {[%clk 0:00:04.4]} 50. Rxd4
{[%clk 0:00:04.2]} 50... cxd4 {[%clk 0:00:05.3]} 51. Rxd4 {[%clk 0:00:04.2]}
51... Re2 {[%clk 0:00:05.7]} 52. Rd2 {[%clk 0:00:04.2]} 52... Rxd2 {[%clk
0:00:05.4]} 53. Qxd2 {[%clk 0:00:05.1]} 53... Qc5 {[%clk 0:00:06.1]} 54. Qd1
{[%clk 0:00:04.9]} 54... Re7 {[%clk 0:00:06.4]} 55. Qf3 {[%clk 0:00:04.7]} 55...
Ra7 {[%clk 0:00:06.6]} 56. Kh3 {[%clk 0:00:04.6]} 56... Ra1 {[%clk 0:00:06.7]}
57. Ne3 {[%clk 0:00:04.7]} 57... Ra3 {[%clk 0:00:07.1]} 58. h5 {[%clk
0:00:03.8]} 58... Qxe3 {[%clk 0:00:07.5]} 59. hxg6+ {[%clk 0:00:03.9]} 59...
Kxg6 {[%clk 0:00:07.2]} 0-1